bitfinex/quotes_BTCUSD_20250508
["timestamp","ask_amount","ask_price","bid_price","bid_amount"]
[1746719184398,0.14009004,101460.0,101450.0,0.19714144]
[1746719184641,0.33721195,101460.0,101440.0,0.20700175]
[1746719184965,0.02956955,101450.0,101440.0,0.1971441]
[1746719185183,0.02957004,101450.0,101440.0,0.1971441]
[1746719185388,0.03942701,101450.0,101440.0,0.20700194]
[1746719185593,0.73975987,101450.0,101440.0,0.00014037]
[1746719185804,0.23245519,101450.0,101440.0,0.00014037]
[1746719186219,0.5524233,101460.0,101450.0,0.19714144]
[1746719186427,0.68265783,101460.0,101450.0,0.19714144]
[1746719186634,0.35971093,101460.0,101450.0,0.21685489]
[1746719186879,0.00985532,101460.0,101450.0,0.20699831]
[1746719187069,0.01971083,101460.0,101450.0,0.19706144]
[1746719187245,0.22668942,101460.0,101450.0,0.19706144]
[1746719187453,0.00985639,101450.0,101440.0,0.21701723]
[1746719187650,0.01085639,101450.0,101440.0,0.00014037]
[1746719187850,0.01971326,101450.0,101440.0,0.19730125]
[1746719188064,0.21685509,101450.0,101440.0,0.19730125]
[1746719188258,0.01971365,101450.0,101440.0,0.19730125]
[1746719188456,0.32737908,101450.0,101440.0,0.19730125]
[1746719188654,0.34307908,101450.0,101440.0,0.19730125]
[1746719188857,0.001,101450.0,101440.0,0.19730125]
[1746719189060,0.001,101450.0,101440.0,0.2268742]
[1746719189273,0.001,101450.0,101440.0,0.34324112]
[1746719189519,0.003,101450.0,101440.0,0.35974112]
[1746719189924,0.003,101450.0,101440.0,0.71428197]
[1746719190091,0.001,101450.0,101440.0,0.69974112]
[1746719190439,0.001,101450.0,101440.0,0.36174112]
[1746719190773,0.1320274,101470.0,101460.0,0.19712201]
[1746719190984,0.1,101470.0,101460.0,0.22668914]
[1746719191190,0.10985435,101470.0,101460.0,0.20697811]
[1746719191547,0.10985435,101470.0,101460.0,0.21683391]
[1746719191779,0.10985435,101470.0,101460.0,0.21683372]
[1746719192030,0.11185435,101470.0,101460.0,0.19712201]
[1746719192195,0.13256333,101470.0,101460.0,0.19712201]
[1746719192427,0.01971365,101450.0,101440.0,0.19730125]
[1746719192640,0.62695124,101460.0,101440.0,0.19730125]
[1746719192850,0.21685451,101450.0,101440.0,0.19730125]
[1746719193053,0.22317606,101450.0,101440.0,0.19730125]
[1746719193245,0.23265499,101450.0,101440.0,0.19730125]
[1746719193456,1.07749534,101450.0,101440.0,0.00014037]
[1746719193661,1.09309534,101450.0,101440.0,0.00014037]
[1746719194064,1.09309534,101450.0,101440.0,0.00214037]
[1746719194217,1.09309534,101450.0,101440.0,0.00014037]
[1746719194636,1.09609534,101450.0,101440.0,0.00014037]
[1746719195001,0.3558,101450.0,101440.0,0.20715909]
[1746719195118,0.67832201,101450.0,101440.0,0.00014037]
[1746719195319,0.66846533,101450.0,101440.0,0.20030125]
[1746719195523,0.68426533,101450.0,101440.0,0.00314037]
[1746719195732,1.08834948,101450.0,101440.0,0.00314037]
[1746719195962,1.08834948,101450.0,101440.0,0.00014037]
[1746719196175,1.09334948,101450.0,101440.0,0.00114037]
[1746719196382,1.11708666,101450.0,101440.0,0.00114037]
[1746719196607,0.57319767,101430.0,101420.0,0.002]
[1746719196803,1.07723435,101430.0,101420.0,0.0021405]
[1746719197449,0.67386459,101430.0,101420.0,0.0021405]
[1746719197651,0.67386459,101430.0,101420.0,0.19934026]
[1746719197866,0.66600606,101430.0,101420.0,0.19934026]
[1746719198492,0.66600606,101430.0,101420.0,0.0021405]
[1746719198697,0.68150606,101430.0,101420.0,0.0021405]
[1746719199328,1.08687582,101430.0,101420.0,0.0021405]
[1746719199540,1.08687582,101430.0,101420.0,0.19934026]
[1746719199754,1.08687582,101430.0,101420.0,0.00830879]
[1746719200993,1.08687582,101430.0,101420.0,0.0021405]
[1746719201204,0.68350606,101430.0,101420.0,0.0021405]
[1746719201414,1.08687582,101430.0,101420.0,0.0021405]
[1746719201824,1.18754274,101430.0,101420.0,0.00830879]
[1746719202038,0.01972065,101410.0,101400.0,0.16769831]
[1746719202246,0.0419074,101410.0,101400.0,0.16569789]
[1746719202446,0.03204664,101410.0,101400.0,0.16569789]
[1746719202656,0.02218646,101410.0,101400.0,0.16569789]
[1746719202854,0.36625959,101420.0,101400.0,0.19528251]
[1746719203059,0.67730524,101420.0,101410.0,0.1972192]
[1746719203276,0.63786668,101420.0,101410.0,0.1972192]
[1746719203479,0.63786668,101420.0,101400.0,0.16969789]
[1746719203480,0.1972192,101410.0,101400.0,0.16969789]
[1746719203684,0.01972123,101410.0,101400.0,0.09077518]
[1746719203889,0.0295815,101410.0,101400.0,0.08877518]
[1746719204167,0.0295815,101410.0,101400.0,0.09863711]
[1746719204372,0.19914144,101450.0,101410.0,0.21694063]
[1746719204617,0.32740037,101440.0,101430.0,0.19718032]
[1746719204823,0.19718032,101430.0,101420.0,0.19716626]
[1746719205026,0.02957849,101420.0,101410.0,0.1972192]
[1746719205232,0.21694043,101410.0,101400.0,0.08977518]
[1746719205436,0.01972123,101410.0,101400.0,0.19937923]
[1746719205639,0.00986018,101410.0,101400.0,0.20924116]
[1746719205839,0.31758606,101420.0,101410.0,0.1972192]
[1746719206071,0.33318606,101420.0,101410.0,0.1972192]
[1746719206353,0.0098593,101420.0,101410.0,0.1972192]
[1746719206567,0.21276088,101440.0,101430.0,0.19718032]
[1746719206771,0.13898212,101440.0,101430.0,0.19718032]
[1746719206984,0.14009722,101440.0,101430.0,0.19718032]
[1746719207187,0.3372581,101440.0,101430.0,0.19718032]
[1746719207336,0.32740133,101440.0,101430.0,0.19718032]
[1746719207533,0.72718681,101440.0,101420.0,0.19719976]
[1746719207761,0.0098593,101420.0,101410.0,0.20708016]
[1746719207964,0.12038407,101430.0,101420.0,0.19719976]
[1746719208170,0.13270798,101430.0,101420.0,0.19719976]
[1746719208386,0.47270798,101430.0,101420.0,0.19719976]
[1746719208570,0.23663852,101420.0,101410.0,0.1982192]
[1746719208786,0.6203206,101420.0,101410.0,0.1972192]
[1746719208987,0.21691963,101420.0,101410.0,0.1972192]
[1746719209202,1.05624821,101430.0,101420.0,0.19719976]
[1746719209203,0.45766692,101430.0,101420.0,0.19719976]
[1746719209532,0.002,101430.0,101420.0,0.22677854]
[1746719210163,0.02957188,101440.0,101430.0,0.20703923]
[1746719210362,0.01971442,101440.0,101430.0,0.22675657]
[1746719210538,0.01971442,101440.0,101430.0,0.21689795]
[1746719210775,0.02957178,101440.0,101430.0,0.19718032]
[1746719210982,0.03203675,101440.0,101430.0,0.19718032]
[1746719211189,0.002,101450.0,101440.0,0.20701882]
[1746719211402,0.03156965,101450.0,101440.0,0.19716088]
[1746719211613,0.21687647,101440.0,101430.0,0.001]
[1746719211817,0.73614436,101440.0,101430.0,0.001]
[1746719212018,1.09274436,101440.0,101430.0,0.001]
[1746719212448,1.09274436,101440.0,101430.0,0.00114058]
[1746719212651,1.09274436,101440.0,101430.0,0.00014058]
[1746719212851,1.19341128,101440.0,101430.0,0.00014058]
[1746719213212,1.19741128,101440.0,101430.0,0.00114058]
[1746719213576,1.20041128,101440.0,101430.0,0.00114058]
[1746719213978,1.09974436,101440.0,101430.0,0.00114058]
[1746719214879,1.09974436,101440.0,101430.0,0.01114058]
[1746719215086,0.69634339,101440.0,101430.0,0.01114058]
[1746719215294,1.09974436,101440.0,101430.0,0.01114058]
[1746719216015,1.11428521,101440.0,101430.0,0.01114058]
[1746719216148,1.21495213,101440.0,101430.0,0.01114058]
[1746719216562,1.22495213,101440.0,101430.0,0.01114058]
[1746719217206,1.22495213,101440.0,101400.0,0.002]
[1746719217207,0.57354043,101410.0,101400.0,0.002]
[1746719217408,0.57354043,101410.0,101400.0,0.0021406]
[1746719217409,1.09410832,101410.0,101400.0,0.0021406]
[1746719217606,1.20931609,101410.0,101400.0,0.0021406]
[1746719217846,1.10864917,101410.0,101400.0,0.0021406]
[1746719218172,0.7052482,101410.0,101400.0,0.0021406]
[1746719218376,1.12442925,101410.0,101400.0,0.0021406]
[1746719218581,1.14266655,101410.0,101400.0,0.0021406]
[1746719219597,0.23262604,101370.0,101360.0,0.12338608]
[1746719219837,0.23262604,101370.0,101360.0,0.12385724]
[1746719219838,0.73669393,101370.0,101360.0,0.12385724]
[1746719220215,0.11053128,101370.0,101360.0,0.32117373]
[1746719220414,0.12286187,101370.0,101360.0,0.32117373]
[1746719220685,0.32015964,101370.0,101360.0,0.12685724]
[1746719220888,0.73709412,101370.0,101360.0,0.12685724]
[1746719221211,1.07709412,101370.0,101360.0,0.04793453]
[1746719221441,1.09349412,101370.0,101360.0,0.04793453]
[1746719221823,1.09349412,101370.0,101360.0,0.00347116]
[1746719222024,1.11803497,101370.0,101360.0,0.00347116]
[1746719222226,0.57319028,101340.0,101330.0,0.04446337]
[1746719222596,1.09255817,101340.0,101330.0,0.04446337]
[1746719222805,1.12404649,101340.0,101330.0,0.04446337]
[1746719223231,1.10709902,101340.0,101330.0,0.04446337]
[1746719223387,1.09255817,101340.0,101330.0,0.04446337]
[1746719223586,0.67385759,101340.0,101330.0,0.12338608]
[1746719223762,0.45053449,101340.0,101330.0,0.32376099]
[1746719223961,1.06115856,101340.0,101330.0,0.32376099]
[1746719224156,0.86380313,101340.0,101330.0,0.32376099]
[1746719224361,0.12040109,101340.0,101330.0,0.32076099]
[1746719224560,0.10066692,101340.0,101330.0,0.35036604]
[1746719224780,0.10066692,101340.0,101330.0,0.30590267]
[1746719224982,0.01233327,101350.0,101340.0,0.19735543]
[1746719225225,0.00986738,101340.0,101330.0,0.27629762]
[1746719225426,0.21809009,101340.0,101330.0,0.27729762]
[1746719225580,0.30888992,101340.0,101330.0,0.07992271]
[1746719225780,0.12240119,101340.0,101330.0,0.27629762]
[1746719225981,0.01973242,101350.0,101330.0,0.29603461]
[1746719226182,0.31873617,101350.0,101340.0,0.001]
[1746719226450,0.12139963,101350.0,101340.0,0.19835543]
[1746719226658,0.10066692,101350.0,101340.0,0.22695757]
[1746719226884,0.23924488,101360.0,101350.0,0.19733596]
[1746719227085,0.33744493,101360.0,101350.0,0.19733596]
[1746719227321,0.01973485,101340.0,101330.0,0.59937491]
[1746719227527,0.03206904,101340.0,101330.0,0.59937491]
[1746719227738,1.14330606,101340.0,101330.0,0.002]
[1746719227943,1.15713896,101340.0,101330.0,0.002]
[1746719228155,1.17167981,101340.0,101330.0,0.002]
[1746719228366,0.69045739,101340.0,101330.0,0.002]
[1746719228609,0.01973602,101330.0,101320.0,0.19939086]
[1746719228820,0.34,101340.0,101330.0,0.19737491]
[1746719229042,0.12040099,101340.0,101330.0,0.19737491]
[1746719229259,0.22697987,101330.0,101320.0,0.19939086]
[1746719229474,0.53367353,101330.0,101320.0,0.19939086]
[1746719229687,0.51393595,101330.0,101320.0,0.19939086]
[1746719229907,0.13036438,101330.0,101320.0,0.19939086]
[1746719230109,0.72127268,101330.0,101320.0,0.19939439]
[1746719230315,0.72127268,101330.0,101320.0,0.002]
[1746719230526,0.73807268,101330.0,101320.0,0.20139439]
[1746719230742,0.10175981,101330.0,101320.0,0.20139439]
[1746719230952,0.00109289,101330.0,101320.0,0.22213334]
[1746719231157,0.00109289,101330.0,101320.0,0.24187208]
[1746719231360,0.00109289,101330.0,101320.0,0.26734111]
[1746719231563,0.00109289,101330.0,101320.0,0.23200295]
[1746719231695,0.01096085,101330.0,101320.0,0.20239439]
[1746719231892,0.04056571,101330.0,101320.0,0.20239439]
[1746719232126,0.01096085,101330.0,101320.0,0.20239439]
[1746719232327,0.19450996,101330.0,101320.0,0.20239439]
[1746719232528,0.33417201,101330.0,101320.0,0.005]
[1746719232762,0.73757298,101330.0,101320.0,0.20239439]
[1746719233180,0.33417201,101330.0,101320.0,0.005]
[1746719233336,0.73757298,101330.0,101320.0,0.005]
[1746719234127,0.72227298,101330.0,101320.0,0.20239439]
[1746719234247,0.31887201,101330.0,101320.0,0.20239439]
[1746719234454,0.30900346,101330.0,101320.0,0.005]
[1746719234694,0.71240443,101330.0,101320.0,0.005]
[1746719234893,0.81938057,101330.0,101320.0,0.005]
[1746719235093,0.71853569,101330.0,101320.0,0.005]
[1746719235450,0.71853569,101330.0,101320.0,0.22213352]
[1746719235451,0.12149583,101330.0,101320.0,0.22213352]
[1746719235655,0.13136428,101330.0,101320.0,0.2122641]
[1746719235865,0.14123263,101330.0,101320.0,0.20239439]
[1746719236106,0.72473992,101330.0,101320.0,0.005]
[1746719236310,0.81307155,101330.0,101320.0,0.005]
[1746719236536,0.73887249,101330.0,101320.0,0.20239439]
[1746719237091,0.10175981,101330.0,101320.0,0.21226391]
[1746719237291,0.72474013,101330.0,101320.0,0.005]
[1746719237504,0.72227269,101330.0,101320.0,0.20239439]
[1746719237714,0.31887172,101330.0,101320.0,0.20239439]
[1746719237927,0.30900327,101330.0,101320.0,0.20239439]
[1746719238133,0.71853569,101330.0,101320.0,0.005]
[1746719238344,0.71853569,101330.0,101320.0,0.20239439]
[1746719238752,0.71853569,101330.0,101320.0,0.20235439]
[1746719238962,0.31513472,101330.0,101320.0,0.20235439]
[1746719239812,0.31513472,101330.0,101320.0,0.00496]
[1746719240064,0.31513472,101330.0,101320.0,0.20235439]
[1746719240651,0.71853569,101330.0,101320.0,0.20235439]
[1746719240851,0.31887191,101330.0,101320.0,0.20235439]
[1746719241063,0.10175981,101330.0,101320.0,0.20235439]
[1746719241264,0.10175981,101330.0,101320.0,0.2122241]
[1746719241265,0.13136428,101330.0,101320.0,0.2122241]
[1746719241488,0.33860783,101330.0,101320.0,0.20235439]
[1746719241665,0.73847278,101330.0,101320.0,0.00496]
[1746719241883,0.71428371,101330.0,101320.0,0.20235439]
[1746719242027,0.31887181,101330.0,101320.0,0.20235439]
[1746719242248,0.12149642,101330.0,101320.0,0.20235439]
[1746719242572,0.70055132,101330.0,101320.0,0.00496]
[1746719242771,0.71428381,101330.0,101320.0,0.00496]
[1746719242938,1.06928381,101330.0,101320.0,0.00496]
[1746719243140,0.22346391,101320.0,101310.0,0.002]
[1746719243422,0.70334273,101320.0,101310.0,0.002]
[1746719243577,0.11686692,101320.0,101310.0,0.21915476]
[1746719243784,0.11686692,101320.0,101310.0,0.19941387]
[1746719243785,0.12040489,101320.0,101310.0,0.19941387]
[1746719244057,0.5582046,101330.0,101320.0,0.19739439]
[1746719244058,0.37069833,101330.0,101320.0,0.19739439]
[1746719244358,0.11062777,101330.0,101320.0,0.2072641]
[1746719244555,0.11062777,101330.0,101320.0,0.21713372]
[1746719244766,9.289e-05,101330.0,101320.0,0.2467415]
[1746719244917,0.00109289,101330.0,101320.0,0.2630415]
[1746719246207,0.00109289,101330.0,101320.0,0.37990842]
[1746719246431,9.289e-05,101330.0,101320.0,0.37890842]
[1746719246609,9.289e-05,101330.0,101320.0,0.74444927]
[1746719250169,0.00209289,101330.0,101320.0,1.25244927]
[1746719250613,0.00209289,101330.0,101320.0,1.12790842]
[1746719250849,0.00109289,101330.0,101320.0,1.12790842]
[1746719251082,0.002,101350.0,101340.0,0.22695757]
[1746719251304,0.00247175,101350.0,101340.0,0.22695757]
[1746719251799,0.00247175,101350.0,101340.0,0.62695757]
[1746719252238,0.00247175,101350.0,101340.0,0.64355757]
[1746719252461,0.00347175,101350.0,101340.0,0.74422449]
[1746719252694,0.00347175,101350.0,101340.0,0.76022449]
[1746719252950,0.00347175,101350.0,101340.0,1.11476534]
[1746719253172,0.00347175,101350.0,101340.0,1.17776534]
[1746719253440,0.00347175,101350.0,101340.0,6.22776534]
[1746719253663,0.00347175,101350.0,101340.0,1.16776534]
[1746719253893,0.00247175,101350.0,101340.0,1.17476534]
[1746719254110,0.00347175,101350.0,101340.0,1.17676534]
[1746719254330,0.00447175,101350.0,101340.0,1.18376534]
[1746719254558,0.00447175,101350.0,101340.0,1.23376534]
[1746719255991,0.00447175,101350.0,101340.0,1.17376534]
[1746719256196,0.00447175,101350.0,101340.0,1.23376534]
[1746719256409,0.00447175,101350.0,101340.0,1.24863389]
[1746719257530,0.00447175,101350.0,101340.0,1.22409304]
[1746719257738,0.00447175,101350.0,101340.0,1.23863389]
[1746719259426,0.00437175,101350.0,101340.0,1.10849897]
[1746719259519,0.00437175,101350.0,101340.0,0.96622462]
[1746719259744,0.00437175,101350.0,101340.0,0.98282462]
[1746719259970,0.00437175,101350.0,101340.0,0.64282462]
[1746719260191,0.00437175,101350.0,101340.0,0.65282462]
[1746719260413,0.00437175,101350.0,101340.0,0.10595556]
[1746719260661,0.04060426,101350.0,101340.0,0.10595556]
[1746719260871,0.03073786,101350.0,101340.0,0.1256906]
[1746719261084,0.01987175,101350.0,101340.0,0.1236906]
[1746719261343,0.01987175,101350.0,101340.0,0.14342497]
[1746719261544,0.02973776,101350.0,101340.0,0.1246906]
[1746719261769,0.02973776,101350.0,101340.0,0.13455788]
[1746719261995,0.37490662,101350.0,101340.0,0.011]
[1746719262225,0.35270773,101350.0,101340.0,0.011]
[1746719262431,0.35270773,101350.0,101340.0,0.20835543]
[1746719262879,0.13563867,101350.0,101340.0,0.22809067]
[1746719263127,0.13563867,101350.0,101340.0,0.23695805]
[1746719263366,0.02087175,101350.0,101340.0,0.24782534]
[1746719263801,0.00437175,101350.0,101340.0,0.24782534]
[1746719264235,0.00637175,101350.0,101340.0,0.24782534]
[1746719264448,0.00637175,101350.0,101340.0,0.34849226]
[1746719264674,0.00637175,101350.0,101340.0,0.24782534]
[1746719264893,0.00637175,101350.0,101340.0,0.23795825]
[1746719265117,0.00637175,101350.0,101340.0,0.24782534]
[1746719265339,0.00637175,101350.0,101340.0,0.22809087]
[1746719265556,0.02157175,101350.0,101340.0,0.24782534]
[1746719265774,0.02157175,101350.0,101340.0,0.24782553]
[1746719266058,0.02157175,101350.0,101340.0,0.25769262]
[1746719266711,0.76239977,101350.0,101340.0,0.20835543]
[1746719266940,0.35580754,101350.0,101340.0,0.20835543]
[1746719267399,0.78166641,101350.0,101340.0,0.011]
[1746719267621,1.18579194,101350.0,101340.0,0.011]
[1746719268305,1.09006676,101350.0,101340.0,0.011]
[1746719269425,0.68594123,101350.0,101340.0,0.011]
[1746719269648,1.09006676,101350.0,101340.0,0.011]
[1746719269874,1.09006676,101350.0,101340.0,0.20835543]
[1746719270310,0.68594123,101350.0,101340.0,0.011]
[1746719270525,1.09006676,101350.0,101340.0,0.011]
[1746719270749,0.50833739,101350.0,101340.0,0.20835543]
[1746719270968,0.17820418,101350.0,101340.0,0.20835543]
[1746719271216,0.16833739,101350.0,101340.0,0.20835543]
[1746719271428,0.14860459,101350.0,101340.0,0.22809048]
[1746719271658,0.00637175,101350.0,101340.0,0.23795757]
[1746719275410,0.00637175,101350.0,101340.0,0.73862449]
[1746719275624,0.00437175,101350.0,101340.0,0.73762449]
[1746719275843,0.00437175,101350.0,101340.0,0.74379633]
[1746719276063,0.00337175,101350.0,101340.0,0.74679633]
[1746719276319,0.00337175,101350.0,101340.0,0.63995757]
[1746719276512,0.00337175,101350.0,101340.0,0.64095757]
[1746719277440,0.00337175,101350.0,101340.0,0.64095747]
[1746719278559,0.00337175,101350.0,101340.0,0.24095747]
[1746719278979,0.01927175,101350.0,101340.0,0.23109038]
[1746719279193,0.03900426,101350.0,101340.0,0.2212231]
[1746719279401,0.01927175,101350.0,101340.0,0.25082514]
[1746719279810,0.02913786,101350.0,101340.0,0.23109077]
[1746719280016,0.02913767,101350.0,101340.0,0.25082562]
[1746719280230,0.04886979,101350.0,101340.0,0.24095815]
[1746719280441,0.01927175,101350.0,101340.0,0.25082524]
[1746719280845,0.03900388,101350.0,101340.0,0.24095824]
[1746719281048,0.01927175,101350.0,101340.0,0.25082542]
[1746719281254,0.01927175,101350.0,101340.0,0.26069251]
[1746719281645,0.00337175,101350.0,101340.0,0.26069251]
[1746719282252,0.01887175,101350.0,101340.0,0.21096091]
[1746719282476,0.02873776,101350.0,101340.0,0.23069557]
[1746719282825,0.02873776,101350.0,101340.0,0.21096091]
[1746719283034,0.01887175,101350.0,101340.0,0.22082829]
[1746719283242,0.01887175,101350.0,101340.0,0.23069547]
[1746719283449,0.01887175,101350.0,101340.0,0.21096101]
[1746719283672,0.02873776,101350.0,101340.0,0.23069576]
[1746719283914,0.01887175,101350.0,101340.0,0.24056285]
[1746719284136,0.00337175,101350.0,101340.0,0.24056285]
[1746719286356,0.00337175,101350.0,101340.0,0.64056285]
[1746719287072,0.00337175,101350.0,101340.0,0.74122977]
[1746719287298,0.00337175,101350.0,101340.0,0.76300065]
[1746719288452,0.00237175,101350.0,101340.0,0.77560065]
[1746719288659,0.00237175,101350.0,101340.0,0.77460065]
[1746719288874,0.00337175,101350.0,101340.0,0.76500065]
[1746719289305,0.00337175,101350.0,101340.0,0.36500065]
[1746719289515,0.00337175,101350.0,101340.0,0.37000065]
[1746719289727,0.00337175,101350.0,101340.0,0.76899665]
[1746719290821,0.00337175,101350.0,101340.0,0.77787868]
[1746719291040,0.00337175,101350.0,101340.0,1.20851953]
[1746719291252,0.05100731,101410.0,101400.0,0.19723865]
[1746719291519,0.05100731,101410.0,101370.0,0.19724108]
[1746719291520,0.04126173,101400.0,101370.0,0.19724108]
[1746719291737,0.0162,101390.0,101380.0,0.20710826]
[1746719291955,0.03592434,101390.0,101380.0,0.2366991]
[1746719292214,0.04578685,101390.0,101380.0,0.20710845]
[1746719292427,0.06158685,101390.0,101380.0,0.21697213]
[1746719292648,0.032,101390.0,101380.0,0.22683552]
[1746719292877,0.62327561,101410.0,101400.0,0.19723865]
[1746719292878,0.41270022,101410.0,101400.0,0.19723865]
[1746719293122,0.04597957,101410.0,101400.0,0.20710038]
[1746719293325,0.04597957,101410.0,101400.0,0.22682327]
[1746719293561,0.0158931,101410.0,101400.0,0.22682327]
[1746719293802,9.31e-05,101410.0,101400.0,0.33366107]
[1746719294261,9.31e-05,101410.0,101400.0,0.73366107]
[1746719294712,9.31e-05,101410.0,101400.0,0.74886107]
[1746719294924,0.0080931,101410.0,101400.0,0.74986107]
[1746719295372,9.31e-05,101410.0,101400.0,0.74886107]
[1746719295585,0.0050931,101410.0,101400.0,0.74886107]
[1746719295816,9.31e-05,101410.0,101400.0,1.11930192]
[1746719296030,9.31e-05,101410.0,101400.0,1.37864292]
[1746719296242,9.31e-05,101410.0,101400.0,1.32864292]
[1746719296455,9.31e-05,101410.0,101400.0,6.48847127]
[1746719296701,9.31e-05,101410.0,101400.0,6.49047127]
[1746719296912,9.31e-05,101410.0,101400.0,6.49711393]
[1746719297775,0.002,101430.0,101420.0,0.28261939]
[1746719297985,0.002,101430.0,101420.0,0.72342705]
[1746719298411,0.002,101430.0,101420.0,1.17959793]
[1746719298624,0.002,101430.0,101420.0,1.28022793]
[1746719298835,0.002,101430.0,101420.0,1.29569894]
[1746719299043,0.002,101430.0,101420.0,1.32128434]
[1746719299260,0.002,101430.0,101420.0,1.32528434]
[1746719299473,0.002,101430.0,101420.0,1.33028434]
[1746719299678,0.003,101430.0,101420.0,1.30469894]
[1746719299881,0.003,101430.0,101420.0,1.80592994]
[1746719300096,0.003,101430.0,101420.0,1.75592994]
[1746719300302,0.003,101430.0,101420.0,1.77731694]
[1746719300521,0.003,101430.0,101420.0,1.24853231]
[1746719300698,0.003,101430.0,101420.0,1.24188965]
[1746719301117,0.003,101430.0,101420.0,1.19188965]
[1746719301328,0.00030488,101430.0,101420.0,1.24188965]
[1746719301529,0.00030488,101430.0,101420.0,1.23188965]
[1746719301773,0.00030488,101430.0,101420.0,1.1523488]
[1746719302194,0.00030488,101430.0,101420.0,1.1684488]
[1746719302399,0.00030488,101430.0,101420.0,1.13852628]
[1746719302824,0.00030488,101430.0,101420.0,1.12242628]
[1746719303065,0.00030488,101430.0,101420.0,0.76788543]
[1746719303924,0.00030488,101430.0,101420.0,0.75158543]
[1746719304370,0.00030488,101430.0,101420.0,0.65091851]
[1746719304371,0.01530488,101430.0,101420.0,0.65091851]
[1746719304792,0.01488847,101430.0,101420.0,0.65091851]
[1746719305003,0.01488847,101430.0,101420.0,0.64209016]
[1746719305235,0.0185,101450.0,101440.0,0.21687647]
[1746719305478,0.11916692,101450.0,101440.0,0.20701882]
[1746719305699,0.12902311,101450.0,101440.0,0.22304735]
[1746719305919,0.11916692,101450.0,101440.0,0.24276226]
[1746719306150,0.0185,101450.0,101440.0,0.24276226]
[1746719306812,0.1216312,101450.0,101440.0,0.22304754]
[1746719307021,0.0185,101450.0,101440.0,0.24276255]
[1746719307456,0.0185,101450.0,101440.0,0.25276255]
[1746719307673,0.0205,101450.0,101440.0,0.25276255]
[1746719307906,0.0201,101450.0,101440.0,0.25276255]
[1746719308764,0.036,101450.0,101440.0,0.2429051]
[1746719308976,0.036,101450.0,101440.0,0.25276275]
[1746719308977,0.0201,101450.0,101440.0,0.25276275]
[1746719309429,0.0221,101450.0,101440.0,0.25276275]
[1746719310069,0.006,101450.0,101440.0,0.25276275]
[1746719310518,0.006,101450.0,101440.0,0.33168546]
[1746719310957,0.004,101450.0,101440.0,0.33168546]
[1746719311176,0.004,101450.0,101440.0,0.25376275]
[1746719311816,0.004,101450.0,101440.0,0.25276275]
[1746719312031,0.004,101450.0,101440.0,0.25576275]
[1746719312271,0.13446395,101470.0,101460.0,0.22668914]
[1746719312716,0.01971345,101450.0,101440.0,0.014]
[1746719312984,1.15887274,101450.0,101440.0,0.014]
[1746719313281,1.16109246,101450.0,101440.0,0.014]
[1746719313529,1.16109246,101450.0,101440.0,0.01314074]
[1746719313803,1.16109246,101450.0,101440.0,0.01014074]
[1746719314049,0.59845618,101430.0,101420.0,0.19919867]
[1746719314303,0.49208387,101430.0,101420.0,0.2055077]
[1746719314562,0.87019067,101430.0,101420.0,0.22522747]
[1746719314801,0.48222525,101430.0,101420.0,0.22522757]
[1746719315084,0.47236692,101430.0,101420.0,0.24494646]
[1746719315309,0.48222506,101430.0,101420.0,0.24494656]
[1746719315565,0.48222506,101430.0,101420.0,0.23508726]
[1746719315566,0.87419028,101430.0,101420.0,0.23508726]
[1746719315816,0.88404881,101430.0,101420.0,0.2055077]
[1746719316049,0.87719018,101430.0,101420.0,0.23508678]
[1746719316286,0.49908329,101430.0,101420.0,0.23508678]
[1746719316526,0.49908329,101430.0,101420.0,0.23508687]
[1746719316769,0.48922506,101430.0,101420.0,0.23508678]
[1746719317006,0.48922506,101430.0,101420.0,0.22522728]
[1746719317313,0.47936692,101430.0,101420.0,0.25480567]
[1746719317553,0.46366692,101430.0,101420.0,0.25480567]
[1746719317814,0.46366692,101430.0,101420.0,0.2055077]
[1746719318027,1.05253048,101430.0,101420.0,0.2012977]
[1746719318241,0.007,101430.0,101420.0,0.2551718]
[1746719318456,0.007,101430.0,101420.0,0.75583872]
[1746719318673,0.007,101430.0,101420.0,0.77083872]
[1746719318917,0.003,101430.0,101420.0,0.77083872]
[1746719319360,0.002,101450.0,101440.0,0.22673383]
[1746719319568,0.002,101450.0,101440.0,0.24173383]
[1746719319788,0.002,101450.0,101440.0,0.24790209]
[1746719320412,0.002,101450.0,101440.0,0.25669741]
[1746719320630,0.002,101450.0,101440.0,0.24169741]
[1746719320849,0.002,101450.0,101440.0,0.24369741]
[1746719321917,0.002,101450.0,101440.0,0.24569741]
[1746719322155,0.002,101450.0,101440.0,0.34636433]
[1746719323083,0.1165,101470.0,101460.0,0.22668914]
[1746719323540,0.1,101470.0,101460.0,0.2328574]
[1746719324479,0.10247178,101470.0,101460.0,0.2328574]
[1746719324767,0.10247178,101470.0,101460.0,0.24165272]
[1746719325456,0.10447178,101470.0,101460.0,0.24165272]
[1746719326326,0.10447178,101470.0,101460.0,0.34231964]
[1746719326550,0.10447178,101470.0,101460.0,0.35811964]
[1746719326779,0.10447178,101470.0,101460.0,0.77471964]
[1746719327213,0.10247178,101470.0,101460.0,0.77471964]
[1746719327877,0.10247178,101470.0,101460.0,0.78133174]
[1746719328340,0.09063771,101470.0,101460.0,0.82579511]
[1746719328575,0.08863771,101470.0,101460.0,0.83579511]
[1746719328786,0.08863771,101470.0,101460.0,0.8508299]
[1746719329902,0.08863771,101470.0,101460.0,0.8528299]
[1746719330324,0.08863771,101470.0,101460.0,0.80836653]
[1746719330544,0.02699282,101470.0,101460.0,0.81036653]
[1746719330777,0.02699282,101470.0,101460.0,0.77796653]
[1746719330994,0.02699282,101470.0,101460.0,0.76093174]
[1746719331214,0.02699282,101470.0,101460.0,0.76493174]
[1746719331429,0.02699282,101470.0,101460.0,0.75631964]
[1746719331855,0.02699282,101470.0,101460.0,0.76031964]
[1746719332808,0.02699282,101470.0,101460.0,0.53760915]
[1746719333256,0.17107773,101470.0,101460.0,0.23994169]
[1746719333478,0.17846873,101470.0,101460.0,0.23008559]
[1746719333698,0.18832356,101470.0,101460.0,0.24362933]
[1746719333941,0.18832356,101470.0,101460.0,0.24441933]
[1746719334151,0.18832356,101470.0,101460.0,0.24041933]
[1746719334355,0.18832356,101470.0,101460.0,0.23056343]
[1746719334567,0.16861409,101470.0,101460.0,0.22762401]
[1746719334775,0.16861399,101470.0,101460.0,0.24733533]
[1746719334982,0.16861409,101470.0,101460.0,0.25719075]
[1746719335395,0.12965974,101470.0,101460.0,0.25719075]
[1746719335618,0.03199282,101470.0,101460.0,0.25719075]
[1746719336880,0.02899282,101470.0,101460.0,0.25719075]
[1746719337118,0.02699282,101470.0,101460.0,0.25719075]
[1746719337525,0.03099282,101470.0,101460.0,0.25719075]
[1746719337961,0.02699282,101470.0,101460.0,0.25719075]
[1746719338424,0.03099282,101470.0,101460.0,0.25719075]
[1746719338861,0.02899282,101470.0,101460.0,0.25719075]